bitfinex-derivatives/quotes_ETHF0:USTF0_20260208
["timestamp","ask_amount","ask_price","bid_price","bid_amount"]
[1770520183727,1.38838656,2084.6,2083.3,1.28622334]
[1770520187331,1.38838656,2084.4,2083.3,1.28622334]
[1770520188535,1.38838656,2083.8,2082.0,1.28111427]
[1770520188735,1.38838656,2083.6,2082.0,1.28111427]
[1770520189536,1.38838656,2083.6,2082.0,1.28663977]
[1770520190434,1.38838656,2083.6,2082.4,1.28111427]
[1770520191540,1.38838656,2083.8,2082.4,1.28111427]
[1770520195045,1.38838656,2083.8,2082.4,1.52140427]
[1770520195746,1.38838656,2083.8,2082.6,1.28111427]
[1770520196944,1.38838656,2083.8,2082.1,1.52143427]
[1770520197546,1.38838656,2083.8,2082.3,1.28111427]
[1770520199347,1.38838656,2083.8,2082.4,1.28111427]
[1770520203056,1.38838656,2083.8,2082.6,1.28111427]
[1770520204452,1.38838656,2083.8,2082.4,1.28111427]
[1770520204653,1.38838656,2083.6,2082.4,1.28111427]
[1770520205258,1.38838656,2083.5,2082.4,1.28111427]
[1770520210662,1.39183462,2083.4,2082.4,1.28111427]
[1770520213057,1.39183462,2083.4,2082.5,1.36167738]
[1770520213454,2.81330058,2083.7,2082.7,0.24025]
[1770520213455,1.39962325,2083.7,2082.7,0.24025]
[1770520213658,1.39962325,2083.9,2082.9,1.36167738]
[1770520213861,1.39962325,2083.9,2083.0,1.36167738]
[1770520214463,1.39962325,2084.2,2083.1,1.36167738]
[1770520215366,1.39962325,2083.8,2082.9,1.36167738]
[1770520216165,1.39962325,2083.7,2082.6,1.36167738]
[1770520216353,1.39962325,2083.6,2082.6,1.36167738]
[1770520216758,1.39962325,2083.5,2082.6,1.36167738]
[1770520217361,1.39962325,2083.4,2082.6,1.36167738]
[1770520218066,1.39962325,2082.9,2082.0,1.36720288]
[1770520218266,1.40505985,2082.9,2082.0,1.36720288]
[1770520218862,1.40505985,2082.9,2082.1,1.36167738]
[1770520219564,1.40505985,2082.9,2082.0,1.36720288]
[1770520219764,1.40505985,2082.9,2082.0,0.0055255]
[1770520219975,4.22326845,2082.9,2082.0,0.0055255]
[1770520220166,1.39962325,2082.8,2082.0,0.0055255]
[1770520221862,1.39962325,2082.7,2081.6,1.36167738]
[1770520222062,1.39962325,2082.7,2081.7,1.36167738]
[1770520223069,1.39962325,2082.7,2081.7,1.36711115]
[1770520224975,1.40505985,2082.9,2081.7,1.36711115]
[1770520225670,0.0054366,2082.9,2081.9,1.36167738]
[1770520227268,0.0054366,2082.9,2081.9,5.65261196]
[1770520227576,0.0054366,2082.9,2082.0,1.36167738]
[1770520228075,0.0054366,2082.9,2082.1,1.36167738]
[1770520232967,1.39962325,2083.4,2082.3,1.36167738]
[1770520233171,1.39962325,2083.4,2082.4,1.36167738]
[1770520233565,45.10140437,2083.9,2082.5,1.36167738]
[1770520233771,1.39962325,2083.6,2082.5,1.36167738]
[1770520233973,0.00408867,2083.6,2082.6,1.36167738]
[1770520234580,0.00408867,2083.6,2082.6,1.60194738]
[1770520234776,0.00408867,2083.6,2082.7,5.65261196]
[1770520234980,0.00408867,2083.6,2082.8,1.36167738]
[1770520237175,1.41975165,2083.9,2082.8,1.36167738]
[1770520238082,1.42458884,2083.9,2082.8,1.36167738]
[1770520238281,1.42458884,2083.9,2082.9,1.29188448]
[1770520240684,1.42458884,2083.9,2083.1,1.29188448]
[1770520244986,1.41975165,2083.8,2082.7,4.29093458]
[1770520245284,1.41975165,2083.8,2082.5,1.29188448]
[1770520245589,1.41975165,2083.7,2082.5,1.29188448]
[1770520251807,1.42458884,2083.9,2082.7,1.29188448]
[1770520252112,1.42458884,2083.9,2082.8,1.29188448]
[1770520252710,1.42458884,2083.9,2082.8,5.58281906]
[1770520252911,1.42458884,2083.9,2082.9,1.29188448]
[1770520255408,1.42458884,2083.9,2083.0,1.29188448]
[1770520257216,42.28319577,2084.4,2082.9,4.29093458]
[1770520257217,1.41975165,2084.4,2083.3,1.29188448]
[1770520258211,1.42403129,2084.4,2083.3,1.29627252]
[1770520264117,1.42403129,2084.4,2083.3,0.00438804]
[1770520264329,1.42403129,2084.4,2083.3,1.29627252]
[1770520267017,1.42403129,2084.4,2083.3,1.53645252]
[1770520267216,1.42403129,2084.4,2083.5,1.3011161]
[1770520268815,1.42403129,2084.4,2083.3,1.30550414]
[1770520269619,1.42403129,2084.4,2083.4,1.3011161]
[1770520273828,1.42403129,2084.4,2083.5,1.32342986]
[1770520274520,1.42403129,2084.4,2083.7,1.32342986]
[1770520275822,0.00427964,2084.4,2083.7,1.32342986]
[1770520276025,1.2607394,2084.8,2083.8,1.32342986]
[1770520276224,1.2607394,2084.8,2083.9,1.32342986]
[1770520276529,1.2607394,2085.0,2084.0,1.32342986]
[1770520276922,1.26479648,2085.0,2084.0,1.32342986]
[1770520277830,1.26479648,2085.0,2084.2,1.32342986]
[1770520278925,0.00405708,2085.0,2084.2,1.32342986]
[1770520279128,1.2607394,2085.8,2084.4,1.32342986]
[1770520279325,1.2607394,2085.8,2084.5,1.32342986]
[1770520280216,1.26644418,2085.8,2084.5,1.32342986]
[1770520281724,1.26644418,2085.8,2084.7,1.32342986]
[1770520284432,1.26644418,2085.8,2084.7,1.56344986]
[1770520288835,1.26644418,2085.8,2084.7,1.32342986]
[1770520289036,1.26644418,2085.8,2084.5,1.32342986]
[1770520293638,1.26644418,2085.8,2084.3,1.56349986]
[1770520293936,1.26644418,2085.8,2083.9,4.29093458]
[1770520293937,1.2607394,2085.4,2083.9,1.32342986]
[1770520294534,1.2607394,2085.3,2083.7,1.32342986]
[1770520294736,1.2607394,2085.0,2083.7,1.32342986]
[1770520295534,4.078948,2085.0,2083.4,1.32876616]
[1770520295740,1.28266661,2084.9,2083.4,1.32876616]
[1770520304540,1.28266661,2084.9,2083.5,1.32876616]
[1770520304738,1.28266661,2084.9,2083.7,1.32876616]
[1770520305048,1.28266661,2084.9,2083.8,1.32876616]
[1770520311447,1.28266661,2085.3,2083.9,1.32876616]
[1770520311849,1.28266661,2085.3,2084.0,1.32876616]
[1770520312846,1.28266661,2085.3,2084.1,1.32876616]
[1770520313752,1.28266661,2085.3,2084.2,1.32876616]
[1770520316652,1.28266661,2085.3,2084.3,1.32876616]
[1770520320657,1.28266661,2085.3,2084.1,1.32876616]
[1770520320850,1.28266661,2085.2,2084.1,1.32876616]
[1770520321954,1.28266661,2085.2,2084.4,1.32876616]
[1770520324457,1.28266661,2085.5,2084.5,1.32876616]
[1770520325451,1.28266661,2085.5,2084.4,4.29093458]
[1770520325452,1.28266661,2085.5,2084.4,5.61970074]
[1770520325651,1.28266661,2085.5,2084.5,1.26295878]
[1770520326358,1.26530096,2085.4,2084.5,1.26295878]
[1770520326761,1.26530096,2085.4,2084.1,5.55389336]
[1770520326762,1.26530096,2085.3,2084.1,5.55389336]
[1770520326962,1.26530096,2085.3,2084.2,1.26295878]
[1770520327960,1.26530096,2085.2,2084.2,1.26295878]
[1770520333160,1.25232219,2085.1,2084.2,1.26295878]
[1770520334365,1.25232219,2085.1,2084.3,1.33486739]
[1770520335259,1.25232219,2085.1,2084.2,1.33486739]
[1770520336857,1.25232219,2085.1,2084.2,5.62580197]
[1770520337062,1.25232219,2085.1,2084.3,1.33486739]
[1770520340362,1.25232219,2085.1,2084.4,1.33486739]
[1770520340563,1.25232219,2085.3,2084.6,1.33486739]
[1770520341865,1.25232219,2085.3,2084.7,1.33486739]
[1770520342268,4.07623557,2085.8,2084.9,1.33486739]
[1770520342465,1.25802697,2085.8,2085.0,1.33486739]
[1770520345063,1.25802697,2085.8,2085.1,1.33486739]
[1770520345470,1.25232219,2085.6,2085.0,1.7015752]
[1770520345969,1.25232219,2085.6,2085.0,1.33486739]
[1770520347059,1.25232219,2085.6,2084.9,0.00451569]
[1770520347371,1.25232219,2085.6,2084.9,1.33938308]
[1770520347872,1.25232219,2085.6,2084.9,0.00451569]
[1770520350662,1.25232219,2085.6,2084.5,1.33486739]
[1770520350663,1.25232219,2085.4,2084.5,1.33486739]
[1770520351667,1.25232219,2085.4,2084.5,1.33992591]
[1770520352370,1.25232219,2085.4,2084.5,1.69452548]
[1770520352570,1.25232219,2085.4,2084.6,1.33486739]
[1770520355278,4.07053079,2085.6,2084.6,1.33486739]
[1770520355471,1.25232219,2085.6,2084.7,1.33486739]
[1770520361181,4.09241146,2085.8,2084.8,1.33382679]
[1770520361382,0.00570478,2085.8,2085.2,1.33382679]
[1770520362483,1.26849808,2086.1,2085.2,1.33382679]
[1770520363690,1.27305073,2086.1,2085.2,1.33382679]
[1770520364781,0.00455265,2086.1,2085.5,1.33382679]
[1770520364985,1.26849808,2086.3,2085.5,1.33382679]
[1770520365888,1.27391095,2086.3,2085.5,1.33382679]
[1770520366681,1.26849808,2086.2,2085.2,1.33382679]
[1770520366888,1.26849808,2086.0,2085.2,1.33382679]
[1770520367581,1.26849808,2086.0,2085.1,1.33382679]
[1770520387603,0.00541287,2086.3,2085.9,1.34781728]
[1770520388109,1.24888728,2086.3,2085.7,1.34781728]
[1770520391904,0.00541287,2086.3,2085.7,1.34781728]
[1770520392203,1.24888728,2086.3,2085.7,1.34781728]
[1770520393107,1.24888728,2086.3,2085.6,1.25073086]
[1770520396621,0.00541287,2086.3,2085.6,1.25073086]
[1770520399018,1.36618214,2086.3,2085.6,1.25073086]
[1770520399219,1.36618214,2086.3,2085.5,1.25073086]
[1770520401724,0.00541287,2086.3,2085.5,1.25073086]
[1770520401923,1.36618214,2086.3,2085.5,1.25073086]
[1770520402222,0.00541287,2086.3,2085.5,1.25073086]
[1770520405423,0.00541287,2086.3,2085.6,1.25073086]
[1770520408026,1.36618214,2086.3,2085.6,1.25073086]
[1770520409022,0.00541287,2086.3,2085.6,1.25073086]
[1770520411330,0.00541287,2086.3,2085.6,5.54166544]
[1770520411533,0.00541287,2086.3,2085.7,1.25073086]
[1770520412226,45.10140437,2086.7,2086.0,1.25073086]
[1770520412421,1.36076927,2086.8,2086.0,1.25073086]
[1770520413328,1.36589535,2086.8,2086.0,1.25612427]
[1770520418126,1.33097256,2086.6,2086.0,1.25612427]
[1770520418329,1.33097256,2086.6,2086.0,0.00539341]
[1770520421335,1.33097256,2086.6,2086.0,1.28842827]
[1770520421932,1.33097256,2086.7,2086.0,1.28842827]
[1770520422843,1.33609864,2086.8,2086.0,1.28842827]
[1770520423647,2.8182086,2086.9,2086.0,1.28842827]
[1770520423648,1.33097256,2087.2,2086.4,1.28303486]
[1770520424742,1.33570405,2087.2,2086.4,1.28303486]
[1770520425139,1.33097256,2087.1,2086.4,1.28303486]
[1770520428246,1.33097256,2087.1,2086.2,1.28303486]
[1770520442353,1.33097256,2087.1,2086.3,1.28303486]
[1770520446451,1.32451053,2087.0,2086.3,1.28303486]
[1770520451264,1.32451053,2086.9,2086.3,1.28303486]
[1770520451861,4.14271913,2087.0,2086.3,1.28303486]
[1770520452063,1.32451053,2087.0,2086.3,1.28303486]
[1770520452264,4.14271913,2087.0,2086.3,1.28303486]
[1770520452760,1.28609705,2086.9,2086.3,1.28303486]
[1770520457267,1.28609705,2086.8,2086.3,1.28303486]
[1770520458867,1.28609705,2086.8,2086.2,4.29093458]
[1770520459164,1.28609705,2086.6,2086.0,1.2935912]
[1770520485382,2.8182086,2086.7,2086.0,1.2935912]
[1770520485682,1.31882204,2086.5,2086.0,1.2935912]
[1770520485886,0.91974766,2086.6,2085.9,0.35084067]
[1770520485887,1.31882204,2086.3,2085.9,0.35084067]
[1770520486185,1.31882204,2086.3,2085.9,0.34628811]
[1770520486887,1.31882204,2086.3,2085.9,0.35091581]
[1770520493793,1.31882204,2086.3,2085.9,0.0046277]
[1770520494099,1.31882204,2086.3,2085.9,1.29407496]
[1770520494798,1.31882204,2086.3,2085.9,0.0046277]
[1770520498301,1.31882204,2086.1,2085.9,0.0046277]
[1770520501293,2.2385697,2086.2,2085.9,1.29407496]
[1770520501498,1.31882204,2086.2,2085.9,1.29407496]
[1770520502597,1.31882204,2086.2,2085.9,0.0046277]
[1770520505808,1.26663924,2086.0,2085.4,1.28657106]
[1770520506000,3.76852481,2086.1,2085.4,1.28657106]
[1770520506001,1.26663924,2085.8,2085.4,1.28657106]
[1770520506697,3.76852481,2086.1,2085.4,1.29042328]
[1770520506905,42.28319577,2086.2,2085.5,1.28657106]
[1770520506906,1.26663924,2086.2,2085.5,1.28657106]
[1770520507498,1.26663924,2086.2,2085.6,1.28657106]
[1770520511602,4.11541639,2086.8,2086.1,1.28657106]
[1770520511801,1.26663924,2086.8,2086.1,1.28657106]
[1770520512401,1.38105787,2087.0,2086.4,1.31347888]
[1770520518305,1.38105787,2086.9,2086.3,1.31347888]
[1770520518507,1.38105787,2086.7,2086.3,1.31347888]
[1770520518703,1.38105787,2086.7,2086.1,1.31347888]
[1770520519503,0.91974766,2087.0,2086.1,1.31347888]
[1770520519708,2.30080553,2087.0,2086.1,1.31347888]
[1770520520213,1.38105787,2087.0,2086.1,1.31347888]
[1770520520912,1.38105787,2087.0,2086.2,0.91974766]
[1770520521113,1.38105787,2087.0,2086.3,1.31347888]
[1770520521708,0.91974766,2086.8,2086.1,1.31347888]
[1770520522013,0.43705787,2086.5,2086.1,1.31347888]
[1770520523313,0.43705787,2086.5,2085.8,1.31347888]
[1770520526411,1.38105787,2086.6,2085.8,1.31347888]
[1770520531023,1.38105787,2086.9,2085.9,1.31347888]
[1770520531415,1.38105787,2086.7,2085.9,1.31347888]
[1770520533224,1.38105787,2086.7,2085.7,1.31347888]
[1770520534219,1.38105787,2086.6,2085.7,1.31347888]
[1770520538129,4.22983502,2086.6,2085.7,1.31347888]
[1770520538427,1.32807777,2086.5,2085.7,1.31347888]
[1770520540423,1.32807777,2086.7,2085.7,1.31347888]
[1770520540628,1.32807777,2086.8,2085.8,1.41355094]
[1770520542426,1.32807777,2086.7,2085.8,1.41355094]
[1770520550137,1.32807777,2086.7,2085.9,1.41355094]
[1770520552527,1.32807777,2086.6,2085.9,1.41355094]
[1770520552733,1.32807777,2086.5,2085.9,1.41355094]
[1770520553435,1.32807777,2086.4,2085.7,1.41355094]
[1770520570765,1.32807777,2086.4,2085.6,5.7096601]
[1770520570958,1.33182524,2086.2,2085.5,1.41872552]
[1770520572060,42.28319577,2086.4,2085.6,0.91961009]
[1770520572061,2.84877715,2086.4,2085.6,0.91961009]
[1770520572262,1.33810149,2086.5,2085.8,1.43706903]
[1770520572860,4.18687864,2086.6,2085.8,1.43706903]
[1770520574067,1.33810149,2086.5,2085.8,1.43706903]
[1770520578069,1.33810149,2086.5,2085.9,1.43706903]
[1770520584073,1.33810149,2086.5,2085.8,4.29093458]
[1770520584275,1.33810149,2086.3,2085.7,1.43706903]
[1770520590978,4.17752521,2086.4,2085.7,1.43706903]
[1770520591172,1.33810149,2086.4,2085.7,1.43706903]
[1770520591568,1.33810149,2086.3,2085.7,1.43706903]
[1770520597982,0.91989731,2086.2,2085.7,1.43706903]
[1770520598383,1.33810149,2086.3,2085.7,1.43706903]
[1770520599587,0.91989731,2086.2,2085.7,1.43706903]
[1770520599987,1.45667773,2086.1,2085.7,1.43706903]
[1770520600890,1.45667773,2085.9,2085.5,1.46191384]
[1770520601389,2.37657504,2086.0,2085.5,1.46191384]
[1770520602689,1.45667773,2085.9,2085.5,1.46191384]
[1770520603290,2.83942372,2086.3,2085.5,1.46191384]
[1770520603291,1.45667773,2086.2,2085.5,1.46191384]
[1770520603492,2.83942372,2086.5,2085.7,1.46191384]
[1770520603682,1.45667773,2086.4,2085.7,1.46191384]
[1770520605094,46.57929722,2086.6,2085.7,1.46191384]
[1770520605294,4.29610145,2086.6,2085.7,1.46191384]
[1770520606997,1.45667773,2086.5,2085.7,1.46191384]
[1770520611098,0.91989731,2086.4,2085.7,1.46191384]
[1770520611293,1.45667773,2086.3,2085.7,1.46191384]
[1770520612200,2.37657504,2086.4,2085.8,1.46191384]
[1770520612700,2.37657504,2086.4,2085.9,1.46191384]
[1770520614397,1.45667773,2086.4,2085.9,1.46191384]
[1770520615102,1.45667773,2086.2,2085.8,1.46191384]
[1770520615994,1.45667773,2086.0,2085.7,1.46191384]
[1770520616396,1.45667773,2086.2,2085.7,1.46191384]
[1770520619395,45.12261949,2086.5,2085.7,1.46191384]
[1770520619597,1.45667773,2086.5,2085.8,1.46191384]
[1770520623504,1.45667773,2086.4,2085.8,1.46191384]
[1770520625305,1.45667773,2086.4,2086.0,1.46191384]
[1770520631103,1.45667773,2086.4,2085.9,4.75892622]
[1770520631305,0.91989731,2086.0,2085.3,1.47903454]
[1770520631504,0.91989731,2085.8,2085.4,1.47886828]
[1770520631709,0.91989731,2085.8,2085.4,5.94178113]
[1770520632110,0.00097426,2085.7,2085.4,5.94178113]
[1770520632307,0.00571956,2085.7,2085.4,5.94694728]
[1770520633206,0.00571956,2085.7,2085.4,4.468079]
[1770520633808,0.3871438,2085.5,2084.7,1.5986648]
[1770520634004,1.30704111,2085.2,2084.7,1.5986648]
[1770520634210,0.91989731,2085.4,2084.7,1.5986648]
[1770520634410,0.38248167,2085.3,2084.7,1.5986648]
[1770520634714,0.38248167,2085.3,2084.7,1.60372662]
[1770520640414,0.91989731,2085.6,2084.7,1.60372662]
[1770520640415,0.68716351,2085.5,2084.7,1.60372662]
[1770520643420,1.62604304,2085.4,2084.7,1.60372662]
[1770520646620,1.65497894,2085.2,2084.7,1.60372662]
[1770520647728,0.73508163,2085.2,2084.7,1.60372662]
[1770520649530,1.66215025,2085.2,2084.7,1.60372662]
[1770520650129,0.74583153,2085.1,2084.7,1.60372662]
[1770520650824,1.66545324,2085.6,2084.7,1.60372662]
[1770520651433,1.67372819,2085.4,2084.7,1.60372662]
[1770520652327,0.75723056,2085.3,2084.7,1.60372662]
[1770520654434,0.91989731,2085.4,2084.7,1.60372662]
[1770520654623,0.91989731,2085.6,2084.7,1.60372662]
[1770520655230,1.66798385,2085.6,2084.7,1.60372662]
[1770520655430,0.74808654,2085.6,2084.7,1.60372662]
[1770520660538,0.77337174,2085.5,2084.7,1.60372662]
[1770520661440,0.77337174,2085.5,2084.8,1.87345292]
[1770520663436,0.77231511,2085.4,2084.8,1.87345292]
[1770520670349,2.83942372,2085.5,2084.8,1.87345292]
[1770520670550,3.6189522,2085.5,2084.8,1.87345292]
[1770520671351,2.83942372,2085.5,2084.8,1.87345292]
[1770520671854,3.62029278,2085.5,2084.8,1.87345292]
[1770520672149,0.78263822,2085.4,2084.8,1.87345292]
[1770520678758,0.7800951,2085.2,2084.7,0.00506182]
[1770520679060,0.7800951,2085.2,2084.7,1.87851474]
[1770520680157,0.77461421,2085.3,2084.7,1.87851474]
[1770520680857,2.83942372,2085.4,2084.7,1.87851474]
[1770520681257,3.61392547,2085.5,2084.7,1.87851474]
[1770520682057,5.65478165,2085.7,2085.2,1.87345292]
[1770520682058,0.0047453,2085.7,2085.2,1.87345292]
[1770520682361,43.31460204,2086.1,2085.2,1.87345292]
[1770520682656,1.03605161,2086.0,2085.2,1.87345292]
[1770520683254,1.03969119,2086.0,2085.2,1.87345292]
[1770520685160,0.00363958,2086.0,2085.2,1.87345292]
[1770520688061,1.21386046,2086.0,2085.2,1.87345292]
[1770520694266,1.21386046,2086.0,2084.7,7.11978514]
[1770520694267,1.20553684,2085.3,2084.7,1.83101977]
[1770520695368,1.20553684,2085.3,2084.5,1.82595795]
[1770520696369,1.20553684,2085.3,2084.5,1.83093902]
[1770520696569,1.31613246,2085.0,2084.1,1.82595795]
[1770520696770,1.91066557,2084.7,2083.7,1.82595795]
[1770520697073,1.91066557,2084.7,2083.7,2.1432983]
[1770520697370,0.92063367,2084.5,2083.7,2.1432983]
[1770520697571,1.91066557,2084.4,2083.7,2.14822844]
[1770520697766,1.91066557,2084.4,2083.7,1.83088809]
[1770520698368,1.91066557,2084.4,2083.5,1.82595795]
[1770520698566,1.91066557,2084.1,2083.3,1.82595795]
[1770520699373,1.91066557,2083.9,2083.3,1.82595795]
[1770520699570,1.91066557,2083.9,2083.3,1.82958507]
[1770520700769,1.91066557,2083.9,2083.3,0.00362712]
[1770520702068,1.91066557,2083.9,2083.3,1.82958507]
[1770520704173,1.91066557,2084.1,2083.3,1.82958507]
[1770520704375,1.91066557,2084.4,2083.3,1.82958507]
[1770520707169,0.00495445,2084.5,2083.3,1.82958507]
[1770520707366,1.91562002,2084.5,2083.3,1.82958507]
[1770520712776,1.91562002,2084.5,2083.3,2.06976507]
[1770520717779,1.91562002,2084.5,2083.3,1.82958507]
[1770520717979,1.91562002,2084.5,2083.3,0.00362712]
[1770520718180,1.91562002,2084.5,2083.3,1.89535627]
[1770520719583,1.91562002,2084.5,2083.3,0.00362712]
[1770520719788,1.96278129,2084.2,2083.3,0.00362712]
[1770520720889,1.96278129,2084.2,2083.3,1.89535627]
[1770520724191,1.96278129,2084.1,2083.3,1.89535627]
[1770520729498,0.92215368,2083.9,2083.3,1.89535627]
[1770520729693,1.96278129,2083.8,2083.3,1.89535627]
[1770520736820,1.96278129,2083.6,2083.3,0.00362712]
[1770520737107,1.96278129,2083.6,2083.0,1.89172915]
[1770520737407,1.96278129,2083.6,2083.0,2.20671457]
[1770520738017,1.96278129,2083.6,2083.0,2.21083078]
[1770520738509,42.28319577,2084.1,2083.1,0.92215368]
[1770520738510,1.96278129,2083.9,2083.1,0.92215368]
[1770520738714,1.96278129,2083.9,2083.2,1.89172915]
[1770520740115,0.92215368,2084.1,2083.2,1.89172915]
[1770520740309,1.96773574,2084.5,2083.7,1.89172915]
[1770520740509,1.96278129,2084.1,2083.6,1.89172915]
[1770520741809,1.96278129,2083.7,2083.3,1.89172915]
[1770520743711,45.12264843,2084.2,2083.1,1.89172915]
[1770520743712,1.96278129,2083.5,2083.1,1.89172915]
[1770520747719,1.75154815,2083.7,2083.1,1.89172915]
[1770520761037,1.63351266,2083.6,2083.1,1.89172915]
[1770520761538,1.63351266,2083.2,2083.0,0.00411621]
[1770520762932,1.63351266,2083.2,2082.7,1.67710419]
[1770520763234,1.63351266,2083.2,2082.8,1.67710419]
[1770520763827,1.63351266,2083.4,2082.8,1.67710419]
[1770520764033,1.63351266,2083.4,2082.8,1.68186153]
[1770520764229,1.63351266,2083.5,2082.8,1.68186153]
[1770520764436,1.63351266,2083.5,2082.9,1.67710419]
[1770520767038,1.63351266,2083.6,2082.9,1.67710419]
[1770520774837,0.92215368,2083.5,2082.8,4.63173287]
[1770520775040,1.63351266,2083.0,2082.5,5.90264834]
[1770520775236,1.63351266,2083.0,2082.5,4.22554415]
[1770520775540,1.46667205,2083.2,2082.6,1.67710419]
[1770520775934,1.46667205,2083.2,2082.6,1.99638462]
[1770520776140,1.47068603,2083.2,2082.6,0.32411354]
[1770520776544,0.92215368,2083.1,2082.6,0.32411354]
[1770520776743,1.46667205,2083.0,2082.6,0.32411354]
[1770520777042,1.47068603,2083.2,2082.7,1.42059356]
[1770520777944,1.46667205,2083.4,2082.7,1.42059356]
[1770520779044,1.47011794,2083.4,2082.7,1.42059356]
[1770520779343,0.00344589,2083.4,2082.7,1.42059356]
[1770520779541,1.46667205,2083.6,2082.7,1.42059356]
[1770520779844,1.46667205,2083.6,2082.9,1.42059356]
[1770520780443,1.47013615,2083.6,2082.9,1.42059356]
[1770520781149,1.47013615,2083.6,2083.0,1.42059356]
[1770520782448,0.0034641,2083.6,2083.0,1.42059356]
[1770520785749,1.47013615,2083.6,2083.0,1.42059356]
[1770520805855,2.84876154,2083.9,2083.0,1.42059356]
[1770520806052,1.28477267,2084.1,2083.3,1.31041155]
[1770520806854,1.29091547,2084.1,2083.3,1.31041155]
[1770520807155,4.13967701,2084.1,2083.3,1.31041155]
[1770520807357,1.29091547,2084.1,2083.3,1.31041155]
[1770520808156,1.29091547,2084.1,2083.4,1.31041155]
[1770520808157,4.13967701,2084.1,2083.4,1.31041155]
[1770520808355,1.29091547,2084.1,2083.4,1.31041155]
[1770520809157,4.13967701,2084.1,2083.4,1.31041155]
[1770520810058,1.28477267,2084.0,2083.4,1.31041155]
[1770520811160,1.29091547,2084.1,2083.5,1.31041155]
[1770520811461,1.29091547,2084.1,2083.6,1.31041155]
[1770520815460,0.0061428,2084.1,2083.6,1.31041155]
[1770520815756,1.36869314,2084.1,2083.6,1.31041155]
[1770520815965,0.0061428,2084.1,2083.6,1.31041155]
[1770520821769,1.36869314,2084.1,2083.6,1.31041155]
[1770520821968,1.36869314,2084.1,2083.5,1.37353551]
[1770520824670,0.0061428,2084.1,2083.5,1.37353551]
[1770520827273,1.36255034,2084.5,2083.6,1.37353551]
[1770520827470,1.36255034,2084.5,2083.7,1.37353551]
[1770520827775,4.21519038,2084.7,2083.7,1.37353551]
[1770520827968,1.36255034,2084.7,2084.0,1.37353551]
[1770520828480,1.36725434,2084.7,2084.0,1.37353551]
[1770520828877,0.004704,2084.7,2084.0,1.37353551]
[1770520829573,0.004704,2084.7,2084.1,5.68374334]
[1770520829779,1.36255034,2084.9,2084.2,1.37353551]
[1770520830178,2.85264004,2085.3,2084.2,1.37353551]
[1770520830375,1.36255034,2085.2,2084.2,1.37353551]
[1770520830774,1.36828897,2085.2,2084.2,1.37751837]
[1770520831276,1.36828897,2085.2,2084.4,1.37353551]
[1770520831778,1.36828897,2085.2,2084.4,5.68374334]
[1770520831981,0.00573863,2085.2,2084.5,1.37353551]
[1770520834884,1.36255034,2085.7,2084.5,1.37353551]
[1770520835180,1.36255034,2085.7,2084.9,1.37353551]
[1770520835979,1.36794522,2085.7,2084.9,1.37353551]
[1770520838885,1.24854767,2085.2,2084.6,1.22545403]
[1770520842583,0.92039639,2084.8,2084.2,1.22943689]
[1770520842776,1.24854767,2084.9,2084.2,1.22943689]
[1770520844080,0.92039639,2084.8,2084.2,1.22943689]
[1770520844286,1.24854767,2084.7,2084.2,0.00398286]
[1770520844884,0.92039639,2084.4,2083.5,1.22545403]
[1770520845080,1.24854767,2084.3,2083.5,1.22545403]
[1770520845988,1.24854767,2084.3,2083.5,1.22886364]
[1770520846681,1.24854767,2084.3,2083.5,2.14926003]
[1770520846986,1.24854767,2084.3,2083.6,1.22545403]
[1770520850985,1.24854767,2084.8,2083.6,1.22545403]
[1770520851285,1.24854767,2084.8,2083.8,1.22545403]
[1770520853289,1.24854767,2084.8,2083.9,1.22545403]
[1770520855187,1.24854767,2084.8,2083.7,1.22545403]
[1770520855492,1.24854767,2084.9,2084.1,1.22545403]
[1770520862594,1.24854767,2085.2,2084.1,1.22545403]
[1770520863996,1.24854767,2085.3,2084.3,1.22545403]
[1770520865198,1.24854767,2085.3,2084.4,1.22545403]
[1770520867598,1.24854767,2085.3,2084.3,4.31020783]
[1770520867599,1.24854767,2085.3,2084.3,1.15254639]
[1770520869994,1.10678745,2085.1,2084.1,1.15254639]
[1770520870193,1.10678745,2085.0,2084.1,1.15254639]
[1770520872203,1.10678745,2085.0,2084.1,5.46275422]
[1770520872502,1.10678745,2085.0,2084.2,1.09410047]
[1770520878108,1.11549081,2084.7,2084.2,1.09410047]
[1770520880705,1.11549081,2085.0,2084.3,1.09410047]
[1770520882309,3.96813085,2085.2,2084.3,1.09410047]
[1770520882611,1.11549081,2085.3,2084.6,1.09410047]
[1770520884310,1.11549081,2085.3,2084.7,1.09410047]
[1770520894516,2.85264004,2085.6,2084.7,1.09410047]
[1770520894724,1.11549081,2085.5,2084.7,1.09410047]
[1770520896527,1.11549081,2085.5,2084.6,4.31020783]
[1770520896731,1.04854278,2085.3,2084.4,0.99438685]
[1770520902232,1.04854278,2085.2,2084.4,0.99438685]
[1770520903932,1.04854278,2085.4,2084.7,0.99438685]
[1770520904837,1.04854278,2085.6,2084.9,0.99438685]
[1770520907639,36.53681706,2086.3,2085.3,4.31020783]
[1770520907840,1.06223157,2087.0,2086.1,0.92091679]
[1770520908037,1.04854278,2087.9,2086.5,0.99438685]
[1770520908439,1.04854278,2087.7,2086.9,2.85788157]
[1770520908736,1.05416667,2087.7,2086.9,0.00532618]
[1770520908939,1.05416667,2087.7,2086.6,9.0386252]
[1770520908940,1.04854278,2087.5,2086.7,4.73658496]
[1770520909134,1.04854278,2087.5,2086.8,4.73658496]
[1770520909337,0.00562389,2087.7,2086.7,0.30768296]
[1770520909338,1.04854278,2087.3,2086.7,0.30768296]
[1770520909537,1.04854278,2087.3,2086.6,0.99438685]
[1770520909736,1.04854278,2087.1,2086.6,0.99438685]
[1770520909939,1.04854278,2087.1,2086.6,0.99923418]
[1770520910244,22.36187925,2087.0,2086.6,0.99923418]
[1770520910443,22.36187925,2087.0,2086.7,0.99438685]
[1770520910745,23.41042203,2087.0,2086.6,0.99923418]
[1770520911037,1.04854278,2086.9,2086.0,0.99438685]
[1770520911238,1.04854278,2086.9,2085.6,5.29642709]
[1770520911433,1.04854278,2086.7,2085.7,0.99438685]
[1770520911838,1.04854278,2086.5,2085.7,0.99438685]
[1770520912045,1.04854278,2086.5,2085.7,0.99924175]
[1770520912739,1.04854278,2086.5,2085.7,1.31866764]
[1770520912944,1.37844758,2087.4,2085.7,0.32428079]
[1770520912945,1.04854278,2086.3,2085.7,0.32428079]
[1770520913136,1.04854278,2086.3,2085.7,0.0048549]
[1770520914840,1.04854278,2086.1,2085.1,5.29642709]
[1770520915041,1.04854278,2086.1,2085.2,0.99438685]
[1770520915244,1.37844758,2086.9,2085.2,0.99438685]
[1770520915245,1.04854278,2085.9,2085.2,0.99438685]
[1770520915643,1.04854278,2085.7,2085.2,0.99438685]
[1770520915842,1.05337147,2085.7,2085.2,1.00026447]
[1770520916044,1.05337147,2085.7,2085.2,0.00587762]
[1770520916445,1.04854278,2085.5,2085.2,0.00587762]
[1770520916646,1.04854278,2085.5,2085.2,1.31317209]
[1770520917145,1.04854278,2085.5,2085.2,0.31878524]
[1770520918649,1.04854278,2085.5,2085.2,1.31317209]
[1770520920841,1.05337147,2085.7,2085.3,0.99438685]
[1770520921049,22.03297099,2085.6,2085.3,0.99438685]